bitfinex/quotes_BTCUSD_20250328
["timestamp","ask_amount","ask_price","bid_price","bid_amount"]
[1743161818855,0.68591208,85117.0,85116.0,3e-07]
[1743161819259,0.68891208,85117.0,85116.0,3e-07]
[1743161821121,1.10661208,85117.0,85116.0,3e-07]
[1743161825231,1.14170987,85117.0,85116.0,3e-07]
[1743161827178,1.10661208,85117.0,85116.0,3e-07]
[1743161830099,1.14169354,85117.0,85116.0,3e-07]
[1743161835581,1.10661208,85117.0,85116.0,3e-07]
[1743161838324,0.011751,85098.0,85091.0,0.0833]
[1743161838639,1.0815844,85098.0,85091.0,0.002]
[1743161838841,0.54682,85082.0,85081.0,2e-07]
[1743161839066,0.66107764,85082.0,85081.0,2e-07]
[1743161839737,1.08778269,85082.0,85081.0,2e-07]
[1743161840303,1.08778269,85082.0,85081.0,8e-07]
[1743161840507,1.10967457,85082.0,85081.0,8e-07]
[1743161841296,1.14487668,85082.0,85081.0,8e-07]
[1743161841720,1.18389788,85082.0,85081.0,8e-07]
[1743161842426,1.18489788,85082.0,85081.0,8e-07]
[1743161842947,1.18789788,85082.0,85081.0,8e-07]
[1743161844189,1.17610892,85082.0,85081.0,8e-07]
[1743161844809,1.15269577,85082.0,85081.0,8e-07]
[1743161845016,1.14369072,85082.0,85081.0,8e-07]
[1743161847002,1.10866952,85082.0,85081.0,8e-07]
[1743161847405,0.546863,85067.0,85066.0,0.0003382]
[1743161847786,0.66112064,85067.0,85066.0,0.0003382]
[1743161848395,0.71798169,85067.0,85066.0,0.0003382]
[1743161849146,0.71898169,85067.0,85066.0,0.0003382]
[1743161849598,0.71798169,85067.0,85066.0,0.0003382]
[1743161849748,0.72469169,85067.0,85066.0,0.0003382]
[1743161850189,0.72669169,85067.0,85066.0,0.0003382]
[1743161850611,1.14439169,85067.0,85066.0,0.0003382]
[1743161851582,0.06557105,85067.0,85066.0,0.0003382]
[1743161851788,0.31243405,85067.0,85066.0,0.0003382]
[1743161852380,0.30772405,85067.0,85066.0,0.0003382]
[1743161852589,0.30572405,85067.0,85066.0,0.0003382]
[1743161852998,0.30572405,85067.0,85066.0,0.0013382]
[1743161853209,0.26875488,85067.0,85066.0,0.0013382]
[1743161854305,0.26875488,85067.0,85066.0,0.0033382]
[1743161855745,0.30369942,85067.0,85066.0,0.0033382]
[1743161859646,0.41795706,85067.0,85066.0,0.0033382]
[1743161859826,0.30369942,85067.0,85066.0,0.0003382]
[1743161860061,0.30369942,85067.0,85066.0,0.0013382]
[1743161860397,0.31243785,85067.0,85066.0,0.0013382]
[1743161860628,0.31243785,85067.0,85066.0,0.0003382]
[1743161860760,0.31243785,85067.0,85066.0,0.0013382]
[1743161860960,0.06557485,85067.0,85066.0,0.3258042]
[1743161861165,0.06557485,85067.0,85066.0,0.41149043]
[1743161861479,0.06557485,85067.0,85066.0,0.43475105]
[1743161861707,0.06557485,85067.0,85066.0,0.54900869]
[1743161861944,0.03494454,85075.0,85074.0,0.246843]
[1743161862085,0.00013361,85082.0,85075.0,0.0766]
[1743161862285,0.00013361,85082.0,85076.0,0.12601164]
[1743161862494,0.00013361,85082.0,85079.0,0.235075]
[1743161863091,0.00013361,85082.0,85077.0,0.323435]
[1743161863304,0.235075,85080.0,85078.0,0.11425764]
[1743161863505,0.246823,85081.0,85079.0,0.10797169]
[1743161863794,0.00013361,85082.0,85079.0,0.10997169]
[1743161864022,0.00013361,85082.0,85079.0,0.10797169]
[1743161864023,0.23520161,85082.0,85079.0,0.10797169]
[1743161864195,0.00013361,85082.0,85079.0,0.10797169]
[1743161864555,0.00013361,85082.0,85080.0,0.181]
[1743161864749,0.00013361,85082.0,85081.0,0.07531743]
[1743161864972,0.00013361,85082.0,85081.0,0.51789807]
[1743161866200,0.00013361,85082.0,85081.0,0.53443892]
[1743161866359,0.00013361,85082.0,85081.0,0.57953892]
[1743161866785,0.00013361,85082.0,85081.0,0.88353892]
[1743161867190,0.00013361,85082.0,85081.0,0.90741357]
[1743161867396,0.00013361,85082.0,85081.0,0.91041357]
[1743161867999,0.00013361,85082.0,85081.0,0.90741357]
[1743161868279,0.00113361,85082.0,85081.0,0.91041357]
[1743161868478,0.00113361,85082.0,85081.0,0.90641357]
[1743161868929,0.00213361,85082.0,85081.0,0.91041357]
[1743161871631,0.00213361,85082.0,85081.0,1.14675557]
[1743161872692,0.2470544,85118.0,85112.0,0.327631]
[1743161872818,0.00047263,85118.0,85114.0,0.234978]
[1743161873221,0.00047263,85118.0,85113.0,0.4672219]
[1743161873643,0.23544063,85118.0,85113.0,0.4672219]
[1743161873849,0.234978,85115.0,85113.0,0.2204929]
[1743161874050,0.246726,85115.0,85113.0,0.2204929]
[1743161874276,0.246726,85115.0,85114.0,0.11625764]
[1743161874483,0.234978,85115.0,85114.0,0.11625764]
[1743161874830,0.01322063,85118.0,85114.0,0.11625764]
[1743161875138,0.011748,85115.0,85114.0,0.11625764]
[1743161875624,0.011749,85112.0,85111.0,0.55936]
[1743161875798,0.246733,85112.0,85111.0,0.74016]
[1743161876836,0.246733,85112.0,85111.0,0.1808]
[1743161877043,0.246733,85112.0,85111.0,0.1838]
[1743161877449,0.246733,85112.0,85111.0,0.1818]
[1743161877581,0.246733,85112.0,85111.0,0.1808]
[1743161877810,0.246733,85112.0,85111.0,0.1818]
[1743161878955,0.246733,85112.0,85111.0,0.1828]
[1743161879131,0.246733,85112.0,85111.0,0.20098]
[1743161879546,0.246733,85112.0,85111.0,0.1828]
[1743161882282,0.234976,85116.0,85111.0,0.1828]
[1743161882283,0.234975,85116.0,85112.0,0.0788]
[1743161882485,0.24673,85113.0,85112.0,0.0788]
[1743161883284,0.00047263,85118.0,85112.0,0.090549]
[1743161883479,0.01222063,85118.0,85113.0,0.0329498]
[1743161883685,0.234978,85114.0,85113.0,0.0329498]
[1743161883883,0.234977,85115.0,85113.0,0.0329498]
[1743161884084,0.00047263,85118.0,85116.0,0.234973]
[1743161884498,0.00047263,85118.0,85116.0,0.234971]
[1743161884688,0.00047263,85118.0,85117.0,0.07869988]
[1743161884888,0.00047263,85118.0,85117.0,0.31366988]
[1743161885090,0.00047263,85118.0,85117.0,0.32541788]
[1743161886286,0.00047263,85118.0,85117.0,0.52267552]
[1743161886693,0.00047263,85118.0,85117.0,0.51092752]
[1743161886934,0.00047263,85118.0,85117.0,0.51392752]
[1743161887192,0.00047263,85118.0,85117.0,0.52267552]
[1743161888028,0.00047263,85118.0,85117.0,0.52667552]
[1743161888414,0.00047263,85118.0,85117.0,0.51492752]
[1743161888615,0.00047263,85118.0,85117.0,0.51792752]
[1743161888827,0.00047263,85118.0,85117.0,0.52967552]
[1743161889227,0.00047263,85118.0,85117.0,0.52567552]
[1743161889616,0.00047263,85118.0,85117.0,0.52967552]
[1743161891033,0.00047263,85118.0,85117.0,0.55159265]
[1743161893976,0.00047263,85118.0,85117.0,0.5661335]
[1743161894180,0.00047263,85118.0,85117.0,0.6115335]
[1743161895486,0.00047263,85118.0,85117.0,0.6085335]
[1743161895719,0.00047263,85118.0,85117.0,0.6045335]
[1743161895923,0.00047263,85118.0,85117.0,0.62551245]
[1743161896724,0.00047263,85118.0,85117.0,0.62151245]
[1743161896929,0.00047263,85118.0,85117.0,1.18663245]
[1743161898181,0.00047263,85118.0,85117.0,1.48663245]
[1743161898737,6.3e-07,85118.0,85117.0,2.36913945]
[1743161898937,0.0003384,85132.0,85131.0,0.678478]
[1743161899162,0.0003384,85132.0,85131.0,1.10205413]
[1743161900273,0.0003384,85132.0,85131.0,1.14209403]
[1743161900498,0.0003384,85132.0,85131.0,1.14709403]
[1743161900701,4e-07,85132.0,85131.0,1.17401116]
[1743161901581,4e-07,85132.0,85131.0,1.19901116]
[1743161902510,4e-07,85132.0,85131.0,1.18801116]
[1743161902743,4e-07,85132.0,85131.0,1.19401116]
[1743161902959,4e-07,85132.0,85131.0,1.20001116]
[1743161905006,4e-07,85132.0,85131.0,1.19401116]
[1743161905561,0.0003382,85144.0,85143.0,0.78688285]
[1743161905802,0.00042191,85144.0,85143.0,1.01539813]
[1743161906982,0.00042191,85144.0,85143.0,1.02139813]
[1743161907322,0.00042191,85144.0,85143.0,1.04931526]
[1743161907712,0.00042191,85144.0,85143.0,1.06029421]
[1743161908364,0.00042191,85144.0,85143.0,0.74575336]
[1743161908564,0.00042191,85144.0,85143.0,0.70041336]
[1743161911180,0.00042191,85144.0,85143.0,0.15915372]
[1743161911181,0.23531791,85144.0,85143.0,0.15915372]
[1743161911392,0.23531791,85144.0,85143.0,0.22521608]
[1743161911595,0.00042191,85144.0,85143.0,0.22521608]
[1743161911823,0.23531791,85144.0,85143.0,0.22521608]
[1743161911978,0.00042191,85144.0,85143.0,0.22521608]
[1743161912183,0.23531791,85144.0,85143.0,0.22521608]
[1743161912385,0.00042191,85144.0,85143.0,0.53313999]
[1743161912692,0.00042191,85144.0,85143.0,0.54488399]
[1743161913097,0.00042191,85144.0,85143.0,0.65314163]
[1743161913239,0.00042191,85144.0,85143.0,0.65914163]
[1743161913565,0.00042191,85144.0,85143.0,0.64816268]
[1743161913971,0.00042191,85144.0,85143.0,0.64216268]
[1743161914417,0.00042191,85144.0,85143.0,0.72336268]
[1743161914769,0.00042191,85144.0,85143.0,0.73790353]
[1743161915380,0.00042191,85144.0,85143.0,0.74390353]
[1743161916762,0.00042191,85144.0,85143.0,0.79986892]
[1743161917593,0.234842,85164.0,85143.0,0.79986892]
[1743161917594,0.0003386,85168.0,85148.0,0.15]
[1743161917821,0.0003386,85168.0,85167.0,0.234832]
[1743161917957,0.00078391,85168.0,85167.0,0.18024]
[1743161918159,0.00078391,85168.0,85167.0,0.2475794]
[1743161919067,0.00078391,85168.0,85167.0,0.4824114]
[1743161919770,0.00078391,85168.0,85167.0,0.49337679]
[1743161919973,0.00078391,85168.0,85167.0,0.52803492]
[1743161920395,0.00078391,85168.0,85167.0,0.52642371]
[1743161920611,0.00078391,85168.0,85167.0,0.64068135]
[1743161921220,0.00078391,85168.0,85167.0,0.64268135]
[1743161921430,0.00078391,85168.0,85167.0,0.72518135]
[1743161921635,0.00078391,85168.0,85167.0,0.7377222]
[1743161922033,0.00078391,85168.0,85167.0,1.2966022]
[1743161922233,0.00078391,85168.0,85167.0,1.4506022]
[1743161922565,0.00078391,85168.0,85167.0,1.4496022]
[1743161923351,0.00078391,85168.0,85167.0,1.4526022]
[1743161923774,0.00078391,85168.0,85167.0,1.4496022]
[1743161923951,0.00078391,85168.0,85167.0,1.28606135]
[1743161924328,0.00078391,85168.0,85167.0,1.29206135]
[1743161929660,0.00078391,85168.0,85167.0,1.3066022]
[1743161931256,0.234777,85187.0,85179.0,0.246538]
[1743161931456,0.00030264,85180.0,85179.0,0.45823904]
[1743161932170,0.00030264,85180.0,85179.0,0.48015617]
[1743161932712,0.00030264,85180.0,85179.0,0.48215617]
[1743161932953,0.00030264,85180.0,85179.0,0.46023904]
[1743161933554,0.00030264,85180.0,85179.0,0.48219283]
[1743161933875,0.00030264,85180.0,85179.0,0.49315822]
[1743161934173,0.00030264,85180.0,85179.0,0.5193499]
[1743161934853,0.00030264,85180.0,85179.0,0.13536258]
[1743161935027,0.00030264,85180.0,85179.0,0.21795918]
[1743161935170,0.23509864,85180.0,85179.0,0.03791918]
[1743161935375,0.00030264,85180.0,85179.0,0.45275818]
[1743161936369,0.24683764,85180.0,85179.0,0.21795918]
[1743161936792,0.00030264,85180.0,85179.0,0.21795918]
[1743161936996,0.00030264,85180.0,85179.0,0.2655842]
[1743161937199,0.00030264,85180.0,85179.0,0.5003832]
[1743161938083,0.00030264,85180.0,85179.0,0.2655842]
[1743161938278,0.23509864,85180.0,85179.0,0.2655842]
[1743161938490,0.24683764,85180.0,85179.0,0.2655842]
[1743161939381,0.00030264,85180.0,85179.0,0.2655842]
[1743161939591,0.00030264,85180.0,85179.0,0.25461881]
[1743161939789,0.23509864,85180.0,85179.0,0.25461881]
[1743161940418,0.00030264,85180.0,85179.0,0.48941781]
[1743161941589,0.00030264,85180.0,85179.0,0.25461881]
[1743161941798,0.23509864,85180.0,85179.0,0.25461881]
[1743161942535,0.23509864,85180.0,85179.0,0.2655842]
[1743161942741,0.24683764,85180.0,85179.0,0.2655842]
[1743161942941,0.00030264,85180.0,85179.0,0.2655842]
[1743161943158,0.00030264,85180.0,85179.0,0.5003832]
[1743161944802,0.00030264,85180.0,85179.0,0.2655842]
[1743161945010,0.00030264,85180.0,85179.0,0.5003832]
[1743161947017,0.00030264,85180.0,85179.0,0.62637984]
[1743161948260,0.00030264,85180.0,85179.0,0.64092069]
[1743161950361,0.00030264,85180.0,85179.0,0.63792069]
[1743161950567,0.0003386,85198.0,85196.0,0.234751]
[1743161950692,0.0003386,85198.0,85197.0,0.2033551]
[1743161951098,0.0003386,85198.0,85197.0,0.4381051]
[1743161951313,0.0003386,85198.0,85197.0,0.4498421]
[1743161951725,0.0003386,85198.0,85197.0,0.46005889]
[1743161952348,0.0003386,85198.0,85197.0,0.29191589]
[1743161952616,0.0003386,85198.0,85197.0,0.46001889]
[1743161952823,0.0003386,85198.0,85197.0,0.22526889]
[1743161953031,0.2468226,85198.0,85197.0,0.22526889]
[1743161953234,0.2468226,85198.0,85197.0,0.02195379]
[1743161953410,0.2468226,85198.0,85197.0,0.20179379]
[1743161953567,0.2468226,85198.0,85197.0,0.21275918]
[1743161956217,0.2350856,85198.0,85197.0,0.21275918]
[1743161956481,0.0003386,85198.0,85197.0,0.2598585]
[1743161956717,0.0003386,85198.0,85197.0,0.5063455]
[1743161956921,0.0003386,85198.0,85197.0,0.62060314]
[1743161958218,0.0003386,85198.0,85197.0,0.63514399]
[1743161958715,0.0003386,85198.0,85197.0,0.63714399]
[1743161958920,0.0003386,85198.0,85197.0,0.63914399]
[1743161959332,0.0003386,85198.0,85197.0,0.63714399]
[1743161959697,0.0003386,85198.0,85197.0,0.64014399]
[1743161959903,0.0003386,85198.0,85197.0,0.63814399]
[1743161960100,0.0003386,85198.0,85197.0,0.64214399]
[1743161960739,0.0003386,85198.0,85197.0,0.63814399]
[1743161960981,0.0003386,85198.0,85197.0,0.64214399]
[1743161962553,0.0003386,85198.0,85197.0,0.63914399]
[1743161962682,0.0003386,85198.0,85197.0,0.64314399]
[1743161962882,0.0003386,85198.0,85197.0,0.63914399]
[1743161963317,0.0003386,85198.0,85197.0,0.64414399]
[1743161964037,0.0003386,85198.0,85197.0,0.45930399]
[1743161964237,0.0003386,85198.0,85197.0,0.64498399]
[1743161964852,0.0003386,85198.0,85197.0,0.64098399]
[1743161965215,0.0003386,85198.0,85197.0,0.64698399]
[1743161965416,0.0003386,85198.0,85197.0,0.46730399]
[1743161965676,0.0003386,85198.0,85197.0,0.64694399]
[1743161965915,0.0003386,85198.0,85197.0,0.63240314]
[1743161966106,0.0003386,85198.0,85197.0,0.45276314]
[1743161966308,0.0003386,85198.0,85197.0,0.63240314]
[1743161969371,0.0003386,85198.0,85197.0,0.71410314]
[1743161970657,0.0003386,85198.0,85197.0,0.63240314]
[1743161971094,0.0003386,85198.0,85197.0,1.19088314]
[1743161973773,0.0003386,85198.0,85197.0,1.19084314]
[1743161977625,0.0120756,85198.0,85197.0,0.60347918]
[1743161977839,0.24967536,85198.0,85197.0,0.60347918]
[1743161978057,0.2468226,85198.0,85197.0,0.60347918]
[1743161978883,0.2468226,85198.0,85197.0,0.59747918]
[1743161979093,0.2468226,85198.0,85197.0,0.60047918]
[1743161979307,0.2468226,85198.0,85197.0,0.59447918]
[1743161979928,0.2468226,85198.0,85197.0,0.58651379]
[1743161980328,0.2468226,85198.0,85197.0,0.66311317]
[1743161980767,0.2468226,85198.0,85197.0,0.58651379]
[1743161982249,0.2468226,85198.0,85197.0,0.56456]
[1743161982654,0.2468226,85198.0,85197.0,0.56156]
[1743161982948,0.2468226,85198.0,85197.0,0.56456]
[1743161983334,0.2468226,85198.0,85197.0,0.56156]
[1743161983688,0.2468226,85198.0,85197.0,0.63675654]
[1743161983689,0.0120756,85198.0,85197.0,0.63675654]
[1743161984049,0.2350856,85198.0,85197.0,0.63675654]
[1743161984573,0.2468226,85198.0,85197.0,0.63875654]
[1743161984708,0.0003386,85198.0,85197.0,0.63875654]
[1743161985144,0.2468226,85198.0,85197.0,0.66071843]
[1743161985592,0.2468226,85198.0,85197.0,0.58552189]
[1743161988076,0.3769226,85198.0,85197.0,0.58552189]
[1743161990188,0.3769226,85198.0,85197.0,0.56356]
[1743161990843,0.2962226,85198.0,85197.0,0.56356]
[1743161995130,0.2962226,85198.0,85197.0,0.005]
[1743161996432,0.2962226,85198.0,85197.0,0.01597719]
[1743161998417,0.2468226,85198.0,85197.0,0.01597719]
[1743161998621,0.2468226,85198.0,85197.0,0.005]
[1743161998892,0.2350856,85198.0,85197.0,0.005]
[1743161999097,0.0003386,85198.0,85197.0,0.27656052]
[1743161999297,0.0003386,85198.0,85197.0,0.03007352]
[1743161999440,0.0003386,85198.0,85197.0,0.26482352]
[1743161999645,0.0003386,85198.0,85197.0,0.27656052]
[1743161999841,0.0003386,85198.0,85197.0,0.35976052]
[1743162000079,0.0003386,85198.0,85197.0,0.37073771]
[1743162000305,0.0003386,85198.0,85197.0,0.50520422]
[1743162000515,0.0003386,85198.0,85197.0,0.49146722]
[1743162000712,0.0003386,85198.0,85197.0,0.48399535]
[1743162000976,0.0003386,85198.0,85197.0,0.48699535]
[1743162001124,0.0003386,85198.0,85197.0,0.24050835]
[1743162001340,0.2350856,85198.0,85197.0,0.24050835]
[1743162001685,0.0003386,85198.0,85197.0,0.47525835]
[1743162001889,0.2350856,85198.0,85197.0,0.24050835]
[1743162002089,0.2350856,85198.0,85197.0,0.04305071]
[1743162002445,0.0003386,85198.0,85197.0,0.04305071]
[1743162002653,0.0003386,85198.0,85197.0,0.27780071]
[1743162003097,0.0003386,85198.0,85197.0,0.28953771]
[1743162003752,0.0003386,85198.0,85197.0,0.28253771]
[1743162003949,0.0003386,85198.0,85197.0,0.28553771]
[1743162004155,0.0003386,85198.0,85197.0,0.28953771]
[1743162004411,0.0003386,85198.0,85197.0,0.40379535]
[1743162004557,0.0003386,85198.0,85197.0,1.04279535]
[1743162004959,0.0003386,85198.0,85197.0,1.03979535]
[1743162005160,0.0003386,85198.0,85197.0,1.04479535]
[1743162006083,0.0003386,85198.0,85197.0,1.04079535]
[1743162006674,0.0003386,85198.0,85197.0,1.04679535]
[1743162012304,0.0003386,85198.0,85197.0,1.22579535]
[1743162015446,0.0003386,85198.0,85197.0,1.14939535]
[1743162017022,0.0003386,85198.0,85197.0,0.85613771]
[1743162017335,0.0003386,85198.0,85197.0,0.78857071]
[1743162017535,0.0003386,85198.0,85197.0,1.03505771]
[1743162019065,0.0003386,85198.0,85197.0,1.22631535]
[1743162019696,0.0003386,85198.0,85197.0,1.27611535]
[1743162020528,0.0003386,85198.0,85197.0,1.26111535]
[1743162020865,0.0003386,85198.0,85197.0,1.27311535]
[1743162023709,0.0003386,85198.0,85197.0,1.22331535]
[1743162026125,0.0003386,85198.0,85197.0,1.21233816]
[1743162030656,0.0003386,85198.0,85197.0,1.03341816]
[1743162030851,0.0003386,85198.0,85197.0,1.21209816]
[1743162037479,0.0003386,85198.0,85197.0,1.20609816]
[1743162037667,0.0003386,85198.0,85197.0,1.20009816]
[1743162037882,0.0003386,85198.0,85197.0,1.22063901]
[1743162038123,0.0003386,85198.0,85197.0,1.22663901]
[1743162038844,0.0003386,85198.0,85197.0,1.26324548]
[1743162039381,0.0003386,85198.0,85197.0,1.22663901]
[1743162040863,2e-07,85199.0,85198.0,0.64352485]
[1743162041071,2e-07,85199.0,85198.0,1.48322194]
[1743162041287,2e-07,85199.0,85198.0,0.90863994]
[1743162041968,0.0003386,85201.0,85198.0,0.90863994]
[1743162042083,0.0003386,85201.0,85200.0,0.67527649]
[1743162042283,0.0003386,85201.0,85200.0,0.82613394]
[1743162042651,0.0003386,85201.0,85200.0,1.37086094]
[1743162043299,0.0003386,85201.0,85200.0,0.82613394]
[1743162043520,0.0003386,85201.0,85200.0,2.26608494]
[1743162043739,0.0003386,85201.0,85200.0,1.96616794]
[1743162043939,0.0003386,85201.0,85200.0,1.36559594]
[1743162044413,0.0003386,85201.0,85200.0,1.37159594]
[1743162044583,0.0003386,85201.0,85200.0,1.36559594]
[1743162045079,0.0003386,85201.0,85200.0,1.37159594]
[1743162047003,0.0003386,85201.0,85200.0,1.37659594]
[1743162047771,0.0003386,85201.0,85200.0,1.36459594]
[1743162047970,0.0003386,85201.0,85200.0,1.37059594]
[1743162048225,0.0003386,85201.0,85200.0,1.37659594]
[1743162050398,0.0003386,85201.0,85200.0,0.87653413]
[1743162051477,0.0003386,85201.0,85200.0,1.05481413]
[1743162054221,0.0003386,85201.0,85200.0,1.09631144]
[1743162055954,0.0003386,85201.0,85200.0,1.65475144]
[1743162057413,0.0003384,85204.0,85203.0,0.696469]
[1743162057647,0.0003384,85204.0,85203.0,0.93952513]
[1743162058785,0.0003384,85204.0,85203.0,0.94552513]
[1743162059723,0.0003384,85204.0,85203.0,0.95152513]
[1743162060775,0.0003384,85204.0,85203.0,1.50992513]
[1743162061760,0.0003384,85204.0,85203.0,1.53295984]
[1743162064588,0.0003384,85204.0,85203.0,1.71099984]
[1743162065099,0.0003384,85204.0,85203.0,1.51841899]
[1743162065306,0.0003384,85204.0,85203.0,0.97194999]
[1743162065525,0.0003384,85204.0,85203.0,0.82194999]
[1743162065743,0.0003384,85204.0,85203.0,0.99994999]
[1743162066575,0.31797841,85204.0,85203.0,0.99394999]
[1743162066998,0.31797841,85204.0,85203.0,0.99994999]
[1743162067335,0.31797841,85204.0,85203.0,0.99394999]
[1743162067915,0.31797841,85204.0,85203.0,0.97691528]
[1743162068254,0.08324841,85204.0,85203.0,0.97691528]
[1743162068611,0.31797841,85204.0,85203.0,0.97087528]
[1743162068989,0.32971441,85204.0,85203.0,0.97687528]
[1743162069596,0.32971441,85204.0,85203.0,0.68465764]
[1743162069804,0.32971441,85204.0,85203.0,0.5704]
[1743162070004,0.37801441,85204.0,85203.0,0.5704]
[1743162070623,0.246472,85202.0,85201.0,0.0003382]
[1743162070831,0.378572,85202.0,85201.0,0.0003382]
[1743162071242,0.38485394,85202.0,85201.0,0.0003382]
[1743162071897,0.38485394,85202.0,85201.0,0.0033382]
[1743162072666,0.68485394,85202.0,85201.0,0.0033382]
[1743162073301,0.68485394,85202.0,85201.0,0.0043382]
[1743162073929,0.68485394,85202.0,85201.0,0.0013382]
[1743162074422,0.68485394,85202.0,85201.0,0.0033382]
[1743162074857,0.68485394,85202.0,85201.0,0.0013382]
[1743162075205,0.68485394,85202.0,85201.0,0.0023382]
[1743162075409,0.38485394,85202.0,85201.0,0.0023382]
[1743162076214,0.38485394,85202.0,85201.0,0.0013382]
[1743162076617,0.38485394,85202.0,85201.0,0.0023382]
[1743162082929,0.38502304,85202.0,85201.0,0.0023382]
[1743162084879,0.49928068,85202.0,85201.0,0.0023382]
[1743162085311,0.79928068,85202.0,85201.0,0.0023382]
[1743162087887,0.79928068,85202.0,85201.0,2e-07]
[1743162088152,1.21698068,85202.0,85201.0,2e-07]
[1743162088398,0.546478,85200.0,85199.0,4e-07]
[1743162088641,0.79742364,85200.0,85199.0,4e-07]
[1743162090903,0.683166,85200.0,85199.0,4e-07]
[1743162092020,0.684166,85200.0,85199.0,4e-07]
[1743162092441,0.6797597,85200.0,85199.0,4e-07]
[1743162094213,0.5972597,85200.0,85199.0,4e-07]
[1743162094799,0.2491597,85200.0,85199.0,4e-07]
[1743162095000,0.00713249,85200.0,85199.0,4e-07]
[1743162095224,0.00104449,85200.0,85199.0,0.00999762]
[1743162095787,0.23578549,85200.0,85199.0,0.00999762]
[1743162096526,0.00121359,85200.0,85199.0,0.00999762]
[1743162096734,0.00021359,85200.0,85199.0,0.00999762]
[1743162097157,0.00021359,85200.0,85199.0,0.01099762]
[1743162097536,0.00021359,85200.0,85199.0,0.36334651]
[1743162097728,0.00021359,85200.0,85199.0,0.12625526]
[1743162097880,0.00021359,85200.0,85199.0,0.12525526]
[1743162098290,0.00021359,85200.0,85199.0,0.12725526]
[1743162098948,0.00021359,85200.0,85199.0,0.36199926]
[1743162099154,0.00021359,85200.0,85199.0,0.12725526]
[1743162102762,0.00021359,85200.0,85199.0,0.12625526]
[1743162102964,0.00021359,85200.0,85199.0,0.37273626]
[1743162103391,0.00021359,85200.0,85199.0,0.44803626]
[1743162103724,0.00021359,85200.0,85199.0,0.45003626]
[1743162104353,0.00021359,85200.0,85199.0,0.45403626]
[1743162104557,0.00021359,85200.0,85199.0,0.45003626]
[1743162104774,0.00021359,85200.0,85199.0,0.45503626]
[1743162105346,0.00021359,85200.0,85199.0,0.45003626]
[1743162105550,0.00021359,85200.0,85199.0,0.45203626]
[1743162105984,0.00021359,85200.0,85199.0,0.45703626]
[1743162106559,0.00021359,85200.0,85199.0,0.44529926]
[1743162107374,0.00021359,85200.0,85199.0,0.21055526]
[1743162107559,0.00021359,85200.0,85199.0,0.44529926]
[1743162108268,0.00021359,85200.0,85199.0,0.21055526]
[1743162108470,0.00021359,85200.0,85199.0,0.44529926]
[1743162108672,0.00021359,85200.0,85199.0,1.00385926]
[1743162109441,0.00021359,85200.0,85199.0,0.76911526]
[1743162109636,0.00021359,85200.0,85199.0,1.00385926]
[1743162110022,0.00021359,85200.0,85199.0,1.01559626]
[1743162114040,0.00021359,85200.0,85199.0,0.69381526]
[1743162114278,0.00021359,85200.0,85199.0,0.75667762]
[1743162114769,0.24669159,85200.0,85199.0,0.7466804]
[1743162115273,0.24669159,85200.0,85199.0,0.5695604]
[1743162115274,0.00021359,85200.0,85199.0,0.5695604]
[1743162115520,0.00021359,85200.0,85199.0,0.7466404]
[1743162115748,0.24669159,85200.0,85199.0,0.7466404]
[1743162116175,0.24669159,85200.0,85199.0,0.82370162]
[1743162116372,0.00021359,85200.0,85199.0,0.82370162]
[1743162116689,0.24669159,85200.0,85199.0,0.82370162]
[1743162117098,0.24669159,85200.0,85199.0,0.7466004]
[1743162117299,0.24669159,85200.0,85199.0,0.5695604]
[1743162117504,0.24669159,85200.0,85199.0,0.7466004]
[1743162118298,0.24669159,85200.0,85199.0,0.7406004]
[1743162118479,0.24669159,85200.0,85199.0,0.7456004]
[1743162118697,0.24669159,85200.0,85199.0,0.7406004]
[1743162119119,0.24669159,85200.0,85199.0,0.7446004]
[1743162123037,0.29629159,85200.0,85199.0,0.5675604]
[1743162123805,0.29629159,85200.0,85199.0,0.5625604]
[1743162124234,0.29629159,85200.0,85199.0,0.5665604]
[1743162124632,0.29629159,85200.0,85199.0,0.5625604]
[1743162125044,0.29629159,85200.0,85199.0,0.5605604]
[1743162125419,0.29629159,85200.0,85199.0,0.5625604]
[1743162125628,0.24669159,85200.0,85199.0,0.5605604]
[1743162125881,0.23495459,85200.0,85199.0,0.5605604]
[1743162126053,0.24669159,85200.0,85199.0,0.61861644]
[1743162127070,0.24669159,85200.0,85199.0,0.61661644]
[1743162127492,0.24669159,85200.0,85199.0,0.61961644]
[1743162127774,0.24669159,85200.0,85199.0,0.5635604]
[1743162127948,0.24669159,85200.0,85199.0,0.5615604]
[1743162128358,0.24669159,85200.0,85199.0,0.5635604]
[1743162130202,0.00021359,85200.0,85199.0,0.5635604]
[1743162130368,0.23495459,85200.0,85199.0,0.69821644]
[1743162130563,0.24669159,85200.0,85199.0,0.69821644]
[1743162131157,0.24669159,85200.0,85199.0,0.61991644]
[1743162131361,0.24669159,85200.0,85199.0,0.5635604]
[1743162132597,0.24669159,85200.0,85199.0,0.0050004]
[1743162144705,0.43604923,85200.0,85199.0,0.0050004]
[1743162144884,0.78224923,85200.0,85199.0,4e-07]
[1743162145297,0.80545026,85200.0,85199.0,4e-07]
[1743162145757,0.246524,85184.0,85183.0,0.55856]
[1743162146963,0.246524,85184.0,85183.0,0.63676]
[1743162147371,0.246524,85184.0,85183.0,0.63976]
[1743162147669,0.246524,85184.0,85183.0,0.56156]
[1743162148298,0.246524,85184.0,85183.0,0.56356]
[1743162152610,0.2580888,85184.0,85183.0,0.56356]
[1743162153661,0.3032888,85184.0,85183.0,0.56356]
[1743162153860,0.3032888,85184.0,85183.0,0.005]
[1743162154070,0.3032888,85184.0,85183.0,0.002]
[1743162154489,0.3032888,85184.0,85183.0,0.004]
[1743162154875,0.3032888,85184.0,85180.0,8e-07]
[1743162154876,0.622133,85181.0,85180.0,8e-07]
[1743162155237,0.73639064,85181.0,85180.0,8e-07]
[1743162157172,0.74541679,85181.0,85180.0,8e-07]
[1743162158358,1.16311679,85181.0,85180.0,8e-07]
[1743162159406,1.16411679,85181.0,85180.0,8e-07]
[1743162160416,1.15509064,85181.0,85180.0,8e-07]
[1743162160647,1.07949064,85181.0,85180.0,8e-07]
[1743162162502,0.665233,85181.0,85180.0,8e-07]
[1743162163114,0.665233,85181.0,85180.0,0.0808008]
[1743162163525,0.247533,85181.0,85180.0,0.0808008]
[1743162164990,0.247533,85181.0,85180.0,8e-07]
[1743162165134,0.246533,85181.0,85180.0,8e-07]
[1743162166151,0.246533,85181.0,85180.0,0.0010008]
[1743162166954,0.246533,85181.0,85180.0,0.0020008]
[1743162176833,0.40609064,85181.0,85180.0,8e-07]
[1743162177033,0.48579064,85181.0,85180.0,8e-07]
[1743162177377,0.78579064,85181.0,85180.0,8e-07]
[1743162177573,0.246565,85170.0,85167.0,0.559098]
[1743162178808,0.24665896,85170.0,85169.0,0.0013378]
[1743162179629,0.24665896,85170.0,85169.0,0.0023378]
[1743162186966,0.24665896,85170.0,85169.0,0.0806378]